Body Name,ONS SNAC ID,Pay Date,Transaction No,Amount �,Supplier Name,Company Registration No,Department,Account Name,CIPFA Service Reporting
Swale Borough Council,29UM,04/01/2017,1147287,1520.00,BATES JPW ADVERTISING LTD,784540                   ,MKS LEGAL SERVICES,Recruitment Adverts - Staff,Internal Trading Cost Centres
Swale Borough Council,29UM,04/01/2017,1146852,1701.90,BBM SUSTAINABLE DESIGN LTD,4597504                  ,COMMUNITY SAFETY,Capitalised Fees And Charges,Not used in this Structure
Swale Borough Council,29UM,04/01/2017,1147102,2897.89,BLENWOOD LTD,4383277                  ,LEISURE & OPEN SPACES,Forestry/Woodland,Cultural and Related Services
Swale Borough Council,29UM,04/01/2017,1147103,1961.07,BLENWOOD LTD,4383277                  ,LEISURE & OPEN SPACES,Forestry/Woodland,Cultural and Related Services
Swale Borough Council,29UM,04/01/2017,1147105,278.13,BLENWOOD LTD,4383277                  ,LEISURE & OPEN SPACES,Maintenance - Grounds,Cultural and Related Services
Swale Borough Council,29UM,04/01/2017,1147140,2686.11,BLENWOOD LTD,4383277                  ,LEISURE & OPEN SPACES,Grounds Contract Variations,Cultural and Related Services
Swale Borough Council,29UM,04/01/2017,1147141,4416.47,BLENWOOD LTD,4383277                  ,LEISURE & OPEN SPACES,Grounds Maint Suspense,Cultural and Related Services
Swale Borough Council,29UM,04/01/2017,1147142,107451.36,BLENWOOD LTD,4383277                  ,LEISURE & OPEN SPACES,Grounds Maint Suspense,Cultural and Related Services
Swale Borough Council,29UM,04/01/2017,1147272,36846.37,BMR CONSTRUCTION LTD,08434080                 ,COMMUNITY SAFETY,Capital Constuction - CIS Works,Not used in this Structure
Swale Borough Council,29UM,04/01/2017,1147146,680.00,BORDEN SHORT MATS BOWL CLUB,                         ,COMMUNITY SAFETY,Grants & Subscriptions,Central Services to the Public
Swale Borough Council,29UM,04/01/2017,1147242,10475.00,CANTERBURY CITY COUNCIL,                         ,SERVICE DELIVERY,Construction,Not used in this Structure
Swale Borough Council,29UM,04/01/2017,1147213,1295.00,CARRINGTON WEST LIMITED,07344853                 ,PLANNING SERVICES,Agency/Contract Staff,Internal Trading Cost Centres
Swale Borough Council,29UM,04/01/2017,1147217,1295.00,CARRINGTON WEST LIMITED,07344853                 ,PLANNING SERVICES,Agency/Contract Staff,Internal Trading Cost Centres
Swale Borough Council,29UM,04/01/2017,1147250,666.66,CLARKES SPORTS STUDIO,                         ,LEISURE & OPEN SPACES,Grants & Subscriptions,Cultural and Related Services
Swale Borough Council,29UM,04/01/2017,1147133,4700.29,COMENSURA LTD,04085767                 ,HUMAN RESOURCES,Agency/Contract Staff,Internal Trading Cost Centres
Swale Borough Council,29UM,04/01/2017,1147249,992.40,COMENSURA LTD,04085767                 ,HUMAN RESOURCES,Agency/Contract Staff,Internal Trading Cost Centres
Swale Borough Council,29UM,04/01/2017,1147248,7445.43,DHA PLANNING,2683290                  ,PLANNING SERVICES,Consultancy/Specialist Advice,Planning and Development Services
Swale Borough Council,29UM,04/01/2017,1147334,413.50,DODDINGTON PARISH COUNCIL,                         ,TOURISM & SPORTS DEVELOPMENT,Grants & Subscriptions,Cultural and Related Services
Swale Borough Council,29UM,04/01/2017,1146982,7000.00,EDS (ENVIRONMENTAL DEFENCE SYSTEMS) LTD,6300190                  ,EMERGENCY PLANNING,Equipment Purchase,Central Services to the Public
Swale Borough Council,29UM,04/01/2017,1147201,255.00,EVAC+CHAIR INTERNATIONAL LTD,3593826                  ,PROPERTY SERVICES,Service Contracts,Corporate & Democratic Core
Swale Borough Council,29UM,04/01/2017,1147198,640.00,EVENT MARSHALLING UNIT,                         ,CAR PARKS,Fees And Services,Highway and Transport Services
Swale Borough Council,29UM,04/01/2017,1147199,480.00,EVENT MARSHALLING UNIT,                         ,CAR PARKS,Fees And Services,Highway and Transport Services
Swale Borough Council,29UM,04/01/2017,1147200,560.00,EVENT MARSHALLING UNIT,                         ,CAR PARKS,Fees And Services,Highway and Transport Services
Swale Borough Council,29UM,04/01/2017,1147083,288.63,GLASDON U.K.LIMITED,2160576                  ,CONTRACT & PROCUREMENT,Equipment Purchase,Environmental and Regulatory Services
Swale Borough Council,29UM,04/01/2017,1147271,38999.00,GLOSFORD TIMBER SOLUTIONS LIMITED,06225466                 ,COMMUNITY SAFETY,Capital Constuction - CIS Works,Not used in this Structure
Swale Borough Council,29UM,04/01/2017,1147293,5190.37,HUBBARD & HOUGHTON CONSTRUCTION LTD,                         ,HOUSING SERVICES,Housing Renovation Grants,Not used in this Structure
Swale Borough Council,29UM,04/01/2017,1147294,300.00,HUBBARD & HOUGHTON LTD,                         ,HOUSING SERVICES,Housing Renovation Grants,Not used in this Structure
Swale Borough Council,29UM,04/01/2017,1147006,547.50,IRRV SERVICES LTD,223447                   ,REVENUE SERVICES,Grants & Subscriptions,Central Services to the Public
Swale Borough Council,29UM,04/01/2017,1147006,547.50,IRRV SERVICES LTD,223447                   ,REVENUE SERVICES,Grants & Subscriptions,Housing
Swale Borough Council,29UM,04/01/2017,1147292,7406.05,J & D SYSTEMS,                         ,HOUSING SERVICES,Housing Renovation Grants,Not used in this Structure
Swale Borough Council,29UM,04/01/2017,1147043,2560.29,KENT COUNTY COUNCIL (KCS),                         ,PROPERTY SERVICES,Gas,Corporate & Democratic Core
Swale Borough Council,29UM,04/01/2017,1147090,330.00,KENT INVICTA CHAMBER OF COMMERCE,2794615                  ,ECONOMIC DEVELOPMENT,Fees And Services,Planning and Development Services
Swale Borough Council,29UM,04/01/2017,1146189,1250.00,LEMAR LIMITED,04350292                 ,LEISURE & OPEN SPACES,Maintenance - Grounds,Environmental and Regulatory Services
Swale Borough Council,29UM,04/01/2017,1146189,1740.75,LEMAR LIMITED,04350292                 ,LEISURE & OPEN SPACES,Maintenance - Grounds,Environmental and Regulatory Services
Swale Borough Council,29UM,04/01/2017,1146971,400.00,LEMAR LIMITED,04350292                 ,CAR PARKS,Maintenance - Grounds,Highway and Transport Services
Swale Borough Council,29UM,04/01/2017,1146971,395.00,LEMAR LIMITED,04350292                 ,CAR PARKS,Maintenance - Grounds,Highway and Transport Services
Swale Borough Council,29UM,04/01/2017,1146653,17813.00,LESSHOMELESS LIMITED,08458851                 ,HOUSING SERVICES,B & B - Landlords Payments,Housing
Swale Borough Council,29UM,04/01/2017,1147101,5000.00,LUBBE & SONS (BULBS) LTD,836902                   ,LEISURE & OPEN SPACES,Nursery Stock,Cultural and Related Services
Swale Borough Council,29UM,04/01/2017,1146999,233.00,MAG:NET SOLUTIONS LTD,4304138                  ,REVENUE SERVICES,Fees And Services,Central Services to the Public
Swale Borough Council,29UM,04/01/2017,1146999,117.00,MAG:NET SOLUTIONS LTD,4304138                  ,REVENUE SERVICES,Fees And Services,Housing
Swale Borough Council,29UM,04/01/2017,1146579,2905.00,MAGEES GUESTHOUSE,                         ,HOUSING SERVICES,B & B - Landlords Payments,Housing
Swale Borough Council,29UM,04/01/2017,1146773,2800.00,MAGEES GUESTHOUSE,                         ,HOUSING SERVICES,B & B - Landlords Payments,Housing
Swale Borough Council,29UM,04/01/2017,1146965,70155.95,MAIDSTONE BOROUGH COUNCIL,                         ,CONTRACT & PROCUREMENT,Private Contractors,Environmental and Regulatory Services
Swale Borough Council,29UM,04/01/2017,1146965,189853.74,MAIDSTONE BOROUGH COUNCIL,                         ,CONTRACT & PROCUREMENT,Private Contractors,Environmental and Regulatory Services
Swale Borough Council,29UM,04/01/2017,1146979,69671.36,MAIDSTONE BOROUGH COUNCIL,                         ,CONTRACT & PROCUREMENT,Private Contractors,Environmental and Regulatory Services
Swale Borough Council,29UM,04/01/2017,1146979,190338.33,MAIDSTONE BOROUGH COUNCIL,                         ,CONTRACT & PROCUREMENT,Private Contractors,Environmental and Regulatory Services
Swale Borough Council,29UM,04/01/2017,1147045,11967.11,MAIDSTONE BOROUGH COUNCIL,                         ,CONTRACT & PROCUREMENT,Private Contractors,Environmental and Regulatory Services
Swale Borough Council,29UM,04/01/2017,1146990,1702.00,MATCHTECH,4426336                  ,PLANNING SERVICES,Agency/Contract Staff,Internal Trading Cost Centres
Swale Borough Council,29UM,04/01/2017,1147220,1702.00,MATCHTECH,4426336                  ,PLANNING SERVICES,Agency/Contract Staff,Internal Trading Cost Centres
Swale Borough Council,29UM,04/01/2017,1146536,2552.80,MEDWAY ACCOMMODATION LIMITED,                         ,HOUSING SERVICES,B & B - Landlords Payments,Housing
Swale Borough Council,29UM,04/01/2017,1146536,531.83,MEDWAY ACCOMMODATION LIMITED,                         ,HOUSING SERVICES,B & B - Landlords Payments,Housing
Swale Borough Council,29UM,04/01/2017,1146739,2794.40,MEDWAY ACCOMMODATION LIMITED,                         ,HOUSING SERVICES,B & B - Landlords Payments,Housing
Swale Borough Council,29UM,04/01/2017,1146739,582.17,MEDWAY ACCOMMODATION LIMITED,                         ,HOUSING SERVICES,B & B - Landlords Payments,Housing
Swale Borough Council,29UM,04/01/2017,1146882,2058.40,MEDWAY ACCOMMODATION LIMITED,                         ,HOUSING SERVICES,B & B - Landlords Payments,Housing
Swale Borough Council,29UM,04/01/2017,1146882,428.83,MEDWAY ACCOMMODATION LIMITED,                         ,HOUSING SERVICES,B & B - Landlords Payments,Housing
Swale Borough Council,29UM,04/01/2017,1147189,2238.25,MPS MARKETING SERVICES LIMITED,6360656                  ,DEMOCRATIC & ELECTORAL SERVICES,Fees And Services,Central Services to the Public
Swale Borough Council,29UM,04/01/2017,1147035,300.00,REDACTED PERSONAL INFORMATION,                         ,HOUSING SERVICES,Homelessness  Prevention Services,Housing
Swale Borough Council,29UM,04/01/2017,1147210,5505.00,NORTH KENT ARCHITEC. CENTRE LTD,3284438                  ,PLANNING SERVICES,Fees And Services,Planning and Development Services
Swale Borough Council,29UM,04/01/2017,1147076,267.29,NPOWER,                         ,CAR PARKS,Electricity,Highway and Transport Services
Swale Borough Council,29UM,04/01/2017,1147100,1121.00,OLD BORDENIANS HOCKEY CLUB,                         ,TOURISM & SPORTS DEVELOPMENT,Grants & Subscriptions,Cultural and Related Services
Swale Borough Council,29UM,04/01/2017,1146654,10475.00,PARAMOUNT INDEPENDENT PROPERTY SERVICES,                         ,HOUSING SERVICES,B & B - Landlords Payments,Housing
Swale Borough Council,29UM,04/01/2017,1146716,3371.25,PETER BRETT ASSOCIATES LLP,OC334398                 ,PLANNING SERVICES,Fees And Services,Planning and Development Services
Swale Borough Council,29UM,04/01/2017,1147055,805.00,PETER BRETT ASSOCIATES LLP,OC334398                 ,PLANNING SERVICES,Fees And Services,Planning and Development Services
Swale Borough Council,29UM,04/01/2017,1147245,290.33,PORTAKABIN LIMITED,685303                   ,LEISURE & OPEN SPACES,Maintenance - Grounds,Environmental and Regulatory Services
Swale Borough Council,29UM,04/01/2017,1147131,420.00,PUTLANDS VETERINARY SURGERY,                         ,ENVIRONMENTAL RESPONSE TEAM,Fees - Veterinary,Environmental and Regulatory Services
Swale Borough Council,29UM,04/01/2017,1146695,735.00,REARDON PROPERTIES,                         ,HOUSING SERVICES,B & B - Landlords Payments,Housing
Swale Borough Council,29UM,04/01/2017,1146871,595.00,REARDON PROPERTIES,                         ,HOUSING SERVICES,B & B - Landlords Payments,Housing
Swale Borough Council,29UM,04/01/2017,1147007,1135.16,ROYAL MAIL GROUP LTD,4138203                  ,PROPERTY SERVICES,Postage,Holding Codes
Swale Borough Council,29UM,04/01/2017,1147074,595.00,SHARNWOOD DEVELOPMENTS LTD,                         ,HOUSING SERVICES,RDS - Landlord claim on Bond Scheme,Housing
Swale Borough Council,29UM,04/01/2017,1147236,250.00,SHARPE PRITCHARD,                         ,PLANNING SERVICES,Legal Fees,Planning and Development Services
Swale Borough Council,29UM,04/01/2017,1146892,750.00,SHEPPEY ESTATES,                         ,HOUSING SERVICES,Homelessness  Prevention Services,Housing
Swale Borough Council,29UM,04/01/2017,1147106,6720.00,SKYGUARD LTD,                         ,HEALTH & SAFETY,Computer Equipment & Materials,Corporate & Democratic Core
Swale Borough Council,29UM,04/01/2017,1147328,400.00,SWAMPYS ANIMAL RESCUE,                         ,COMMUNITY SAFETY,Grants & Subscriptions,Central Services to the Public
Swale Borough Council,29UM,04/01/2017,1146811,980.00,SYNERGY CONSTRUCTION & PROPERTY CONSULTANTS LLP,                         ,COMMUNITY SAFETY,Capitalised Fees And Charges,Not used in this Structure
Swale Borough Council,29UM,04/01/2017,1146772,300.00,THE HISTORICAL RESEARCH GROUP OF SITTINGBOURNE,                         ,COMMUNITY SAFETY,Grants & Subscriptions,Central Services to the Public
Swale Borough Council,29UM,04/01/2017,1147212,310.00,THOMSON REUTERS,1679046                  ,MKS LEGAL SERVICES,"Books, Journals & e - resources",Internal Trading Cost Centres
Swale Borough Council,29UM,04/01/2017,1147137,1980.00,TOP 2 BOTTOM LTD,4522006                  ,LEISURE & OPEN SPACES,Maintenance - Grounds Contract,Cultural and Related Services
Swale Borough Council,29UM,04/01/2017,1146901,1610.00,TRAFALGAR TAVERN LTD,07999329                 ,HOUSING SERVICES,B & B - Landlords Payments,Housing
Swale Borough Council,29UM,04/01/2017,1147058,1365.00,TRAFALGAR TAVERN LTD,07999329                 ,HOUSING SERVICES,B & B - Landlords Payments,Housing
Swale Borough Council,29UM,04/01/2017,1146851,586.55,UNIVERSAL CREDIT,                         ,HOUSING SERVICES,Fees & Charges Non Business,Housing
Swale Borough Council,29UM,04/01/2017,1147147,500.00,UPCHURCH VILLAGE HALL,                         ,COMMUNITY SAFETY,Grants & Subscriptions,Central Services to the Public
Swale Borough Council,29UM,04/01/2017,1147193,1230.00,VENN GROUP LIMITED,                         ,MKS LEGAL SERVICES,Agency/Contract Staff,Internal Trading Cost Centres
Swale Borough Council,29UM,04/01/2017,1147194,624.00,VENN GROUP LIMITED,                         ,MKS LEGAL SERVICES,Agency/Contract Staff,Internal Trading Cost Centres
Swale Borough Council,29UM,04/01/2017,1147264,624.00,VENN GROUP LIMITED,                         ,MKS LEGAL SERVICES,Agency/Contract Staff,Internal Trading Cost Centres
Swale Borough Council,29UM,04/01/2017,1147265,1230.00,VENN GROUP LIMITED,                         ,MKS LEGAL SERVICES,Agency/Contract Staff,Internal Trading Cost Centres
Swale Borough Council,29UM,04/01/2017,1146867,496.12,WHISTL UK LIMITED,04417047                 ,REVENUE SERVICES,Postage,Central Services to the Public
Swale Borough Council,29UM,04/01/2017,1146867,2.14,WHISTL UK LIMITED,04417047                 ,PLANNING SERVICES,Postage,Planning and Development Services
Swale Borough Council,29UM,04/01/2017,1146867,248.06,WHISTL UK LIMITED,04417047                 ,REVENUE SERVICES,Postage,Housing
Swale Borough Council,29UM,04/01/2017,1146867,50.27,WHISTL UK LIMITED,04417047                 ,LEISURE & OPEN SPACES,Postage,Internal Trading Cost Centres
Swale Borough Council,29UM,04/01/2017,1146867,14.80,WHISTL UK LIMITED,04417047                 ,CAR PARKS,Postage,Internal Trading Cost Centres
Swale Borough Council,29UM,04/01/2017,1146867,24.33,WHISTL UK LIMITED,04417047                 ,ENVIRONMENTAL RESPONSE TEAM,Postage,Internal Trading Cost Centres
Swale Borough Council,29UM,04/01/2017,1146867,0.84,WHISTL UK LIMITED,04417047                 ,ECONOMIC DEVELOPMENT,Postage,Internal Trading Cost Centres
Swale Borough Council,29UM,04/01/2017,1146867,209.85,WHISTL UK LIMITED,04417047                 ,PROPERTY SERVICES,Postage,Holding Codes
Swale Borough Council,29UM,04/01/2017,1146867,163.38,WHISTL UK LIMITED,04417047                 ,DEMOCRATIC & ELECTORAL SERVICES,Postage,Central Services to the Public
Swale Borough Council,29UM,04/01/2017,1147277,345.00,WILLOW TREE HOME SOLUTIONS LTD,                         ,HOUSING SERVICES,Staying Put small repairs (contractors),Housing
Swale Borough Council,29UM,04/01/2017,1147291,7567.90,WILLOW TREE HOME SOLUTIONS LTD,                         ,HOUSING SERVICES,Housing Renovation Grants,Not used in this Structure
Swale Borough Council,29UM,04/01/2017,1147270,104056.67,WWM CIVILS LIMITED,08767604                 ,COMMUNITY SAFETY,Capital Constuction - CIS Works,Not used in this Structure
Swale Borough Council,29UM,04/01/2017,1147209,2432.70,WYG ENVIRONMENT PLANNING TRANSPORT LTD,3050297                  ,CONTRACT & PROCUREMENT,Fees And Services,Internal Trading Cost Centres
Swale Borough Council,29UM,04/01/2017,1146894,5500.00,SOLACE ENTERPRISES LTD,                         ,DIRECTOR OF REGENERATION,Recruitment Consultants,Planning and Development Services
Swale Borough Council,29UM,11/01/2017,1147501,7515.90,ACORN MAINTENANCE SERVICES,3546898                  ,HOUSING SERVICES,Housing Renovation Grants,Not used in this Structure
Swale Borough Council,29UM,11/01/2017,1147502,5675.56,ACORN MAINTENANCE SERVICES,3546898                  ,HOUSING SERVICES,Housing Renovation Grants,Not used in this Structure
Swale Borough Council,29UM,11/01/2017,1147263,49.68,ALLSTAR BUSINESS SOLUTIONS LTD - (DT),1073098                  ,DEMOCRATIC & ELECTORAL SERVICES,Petrol/Derv & Oil,Corporate & Democratic Core
Swale Borough Council,29UM,11/01/2017,1147263,122.65,ALLSTAR BUSINESS SOLUTIONS LTD - (DT),1073098                  ,SERVICE DELIVERY,Petrol/Derv & Oil,Cultural and Related Services
Swale Borough Council,29UM,11/01/2017,1147263,88.41,ALLSTAR BUSINESS SOLUTIONS LTD - (DT),1073098                  ,ENVIRONMENTAL RESPONSE TEAM,Fuel For Contract Vehicles,Internal Trading Cost Centres
Swale Borough Council,29UM,11/01/2017,1147282,495.00,ASSOC. OF TOWN CENTRE MANAGEMENT,                         ,ECONOMIC DEVELOPMENT,Fees And Services,Planning and Development Services
Swale Borough Council,29UM,11/01/2017,1147463,550.00,AYS LTD,                         ,LEISURE & OPEN SPACES,Maintenance - Grounds,Cultural and Related Services
Swale Borough Council,29UM,11/01/2017,1147398,2160.00,BEST COMPANIES LIMITED,                         ,CHIEF EXECUTIVE,Prizes/Awards,Corporate & Democratic Core
Swale Borough Council,29UM,11/01/2017,1147324,337.35,BRITISH GAS TRADING LTD,                         ,LEISURE & OPEN SPACES,Gas,Cultural and Related Services
Swale Borough Council,29UM,11/01/2017,1147278,1295.00,CARRINGTON WEST LIMITED,07344853                 ,PLANNING SERVICES,Agency/Contract Staff,Internal Trading Cost Centres
Swale Borough Council,29UM,11/01/2017,1147087,325.68,CHEGWORTH GRAPHIC,7683594                  ,COMMUNICATIONS,Signage,Internal Trading Cost Centres
Swale Borough Council,29UM,11/01/2017,1147389,2956.32,COMENSURA LTD,04085767                 ,HUMAN RESOURCES,Agency/Contract Staff,Internal Trading Cost Centres
Swale Borough Council,29UM,11/01/2017,1147426,2700.00,DAVID HUSKISSON ASSOCIATES LIMITED,2797095                  ,PLANNING SERVICES,Fees And Services,Planning and Development Services
Swale Borough Council,29UM,11/01/2017,1147427,2836.50,DAVID HUSKISSON ASSOCIATES LIMITED,2797095                  ,PLANNING SERVICES,Fees And Services,Planning and Development Services
Swale Borough Council,29UM,11/01/2017,1147241,245.94,DCB (KENT) LIMITED,03532339                 ,COMMUNITY SAFETY,Non-Planned Building Maintenance,Cultural and Related Services
Swale Borough Council,29UM,11/01/2017,1147241,43.00,DCB (KENT) LIMITED,03532339                 ,COMMUNITY SAFETY,Non-Planned Building Maintenance,Cultural and Related Services
Swale Borough Council,29UM,11/01/2017,1147241,110.17,DCB (KENT) LIMITED,03532339                 ,HOUSING SERVICES,Non-Planned Building Maintenance,Housing
Swale Borough Council,29UM,11/01/2017,1147241,512.79,DCB (KENT) LIMITED,03532339                 ,PROPERTY SERVICES,Non-Planned Building Maintenance,Corporate & Democratic Core
Swale Borough Council,29UM,11/01/2017,1147241,73.24,DCB (KENT) LIMITED,03532339                 ,PROPERTY SERVICES,Non-Planned Building Maintenance,Corporate & Democratic Core
Swale Borough Council,29UM,11/01/2017,1147241,13385.33,DCB (KENT) LIMITED,03532339                 ,CONTRACT & PROCUREMENT,Non-Planned Building Maintenance,Environmental and Regulatory Services
Swale Borough Council,29UM,11/01/2017,1147241,249.74,DCB (KENT) LIMITED,03532339                 ,CONTRACT & PROCUREMENT,Non-Planned Building Maintenance,Environmental and Regulatory Services
Swale Borough Council,29UM,11/01/2017,1147241,192.40,DCB (KENT) LIMITED,03532339                 ,CONTRACT & PROCUREMENT,Non-Planned Building Maintenance,Environmental and Regulatory Services
Swale Borough Council,29UM,11/01/2017,1147241,48.00,DCB (KENT) LIMITED,03532339                 ,LEISURE & OPEN SPACES,Non-Planned Building Maintenance,Cultural and Related Services
Swale Borough Council,29UM,11/01/2017,1147425,308.00,DISCLOSURE & BARRING SERVICE (DT),                         ,DIRECTOR OF CORPORATE SERVICES,Fees And Services,Environmental and Regulatory Services
Swale Borough Council,29UM,11/01/2017,1147132,1200.00,FAMILY MOSAIC HOUSING,                         ,HOUSING SERVICES,Staying Put - Materials,Housing
Swale Borough Council,29UM,11/01/2017,1147489,20000.00,FAVERSHAM POOL MNGMT.COMMITTEE,                         ,ECONOMY & COMMUNITIES,Grants & Subscriptions,Cultural and Related Services
Swale Borough Council,29UM,11/01/2017,1147145,680.00,FELLGROVE,                         ,LEISURE & OPEN SPACES,Forestry/Woodland,Cultural and Related Services
Swale Borough Council,29UM,11/01/2017,1146878,360.00,IDOX SOFTWARE LTD,06706798                 ,TOURISM & SPORTS DEVELOPMENT,Fees And Services,Cultural and Related Services
Swale Borough Council,29UM,11/01/2017,1146879,360.00,IDOX SOFTWARE LTD,06706798                 ,TOURISM & SPORTS DEVELOPMENT,Fees And Services,Cultural and Related Services
Swale Borough Council,29UM,11/01/2017,1147214,360.00,IDOX SOFTWARE LTD,06706798                 ,TOURISM & SPORTS DEVELOPMENT,Fees And Services,Cultural and Related Services
Swale Borough Council,29UM,11/01/2017,1146563,-250.00,IKEN BUSINESS LTD,2776536                  ,MKS LEGAL SERVICES,Computer Equipment & Materials,Internal Trading Cost Centres
Swale Borough Council,29UM,11/01/2017,1147506,3090.00,J & D SYSTEMS,                         ,HOUSING SERVICES,Housing Renovation Grants,Not used in this Structure
Swale Borough Council,29UM,11/01/2017,1147474,1550.00,JASMIL KENNELS,05595524                 ,ENVIRONMENTAL RESPONSE TEAM,Kennelling Of Dogs,Environmental and Regulatory Services
Swale Borough Council,29UM,11/01/2017,1147474,-55.00,JASMIL KENNELS,05595524                 ,ENVIRONMENTAL RESPONSE TEAM,Income collected by Dog Kennels,Environmental and Regulatory Services
Swale Borough Council,29UM,11/01/2017,1147452,3423.40,JOHN ELLIOTT CONSULTANCY,                         ,MKS ENVIRONMENTAL SERVICES,Air Quality Grant,Environmental and Regulatory Services
Swale Borough Council,29UM,11/01/2017,1147451,4000.00,KENT COUNTY CRICKET CLUB LIMITED,28955R                   ,TOURISM & SPORTS DEVELOPMENT,Grants & Subscriptions,Cultural and Related Services
Swale Borough Council,29UM,11/01/2017,1147562,6.00,LAND REGISTRY - (DT),                         ,COMMUNITY SAFETY,Fees - Land Registry,Cultural and Related Services
Swale Borough Council,29UM,11/01/2017,1147562,12.00,LAND REGISTRY - (DT),                         ,DIRECTOR OF CORPORATE SERVICES,Fees - Land Registry,Corporate & Democratic Core
Swale Borough Council,29UM,11/01/2017,1147562,174.00,LAND REGISTRY - (DT),                         ,PROPERTY SERVICES,Fees - Land Registry,Trading Undertaking
Swale Borough Council,29UM,11/01/2017,1147562,336.00,LAND REGISTRY - (DT),                         ,REVENUE SERVICES,Fees - Land Registry,Central Services to the Public
Swale Borough Council,29UM,11/01/2017,1147562,252.00,LAND REGISTRY - (DT),                         ,PLANNING SERVICES,Fees - Land Registry,Planning and Development Services
Swale Borough Council,29UM,11/01/2017,1147562,6.00,LAND REGISTRY - (DT),                         ,PLANNING SERVICES,Fees - Land Registry,Planning and Development Services
Swale Borough Council,29UM,11/01/2017,1147562,18.00,LAND REGISTRY - (DT),                         ,ECONOMIC DEVELOPMENT,Fees - Land Registry,Planning and Development Services
Swale Borough Council,29UM,11/01/2017,1147562,18.00,LAND REGISTRY - (DT),                         ,HOUSING SERVICES,Fees - Land Registry,Housing
Swale Borough Council,29UM,11/01/2017,1147562,21.00,LAND REGISTRY - (DT),                         ,REVENUE SERVICES,Fees - Land Registry,Housing
Swale Borough Council,29UM,11/01/2017,1147562,9.00,LAND REGISTRY - (DT),                         ,PROPERTY SERVICES,Fees - Land Registry,Internal Trading Cost Centres
Swale Borough Council,29UM,11/01/2017,1147562,84.00,LAND REGISTRY - (DT),                         ,ENVIRONMENTAL RESPONSE TEAM,Fees - Land Registry,Internal Trading Cost Centres
Swale Borough Council,29UM,11/01/2017,1147562,6.00,LAND REGISTRY - (DT),                         ,ECONOMIC DEVELOPMENT,Fees - Land Registry,Internal Trading Cost Centres
Swale Borough Council,29UM,11/01/2017,1147562,21.00,LAND REGISTRY - (DT),                         ,MKS ENVIRONMENTAL SERVICES,Fees - Land Registry,Internal Trading Cost Centres
Swale Borough Council,29UM,11/01/2017,1147562,82.00,LAND REGISTRY - (DT),                         ,LEISURE & OPEN SPACES,Fees - Land Registry,Cultural and Related Services
Swale Borough Council,29UM,11/01/2017,1147562,36.00,LAND REGISTRY - (DT),                         ,HOUSING SERVICES,Fees - Land Registry,Housing
Swale Borough Council,29UM,11/01/2017,1147562,120.00,LAND REGISTRY - (DT),                         ,HOUSING SERVICES,Fees - Land Registry,Housing
Swale Borough Council,29UM,11/01/2017,1147388,2600.00,LOCAL GOVERNMENT INFORMATION UNIT,1872218                  ,CHIEF EXECUTIVE,Fees And Services,Corporate & Democratic Core
Swale Borough Council,29UM,11/01/2017,1147419,1575.00,LUSHLAND,4289261                  ,PLANNING SERVICES,Fees And Services,Planning and Development Services
Swale Borough Council,29UM,11/01/2017,1147406,40423.50,MAIDSTONE BOROUGH COUNCIL,                         ,AUDIT,MKS Charges for Audit Services,Internal Trading Cost Centres
Swale Borough Council,29UM,11/01/2017,1147247,1702.00,MATCHTECH,4426336                  ,PLANNING SERVICES,Agency/Contract Staff,Internal Trading Cost Centres
Swale Borough Council,29UM,11/01/2017,1147309,2015.00,MAYLOW CONSTRUCTION LTD,                         ,LEISURE & OPEN SPACES,Maintenance - Grounds,Cultural and Related Services
Swale Borough Council,29UM,11/01/2017,1147310,395.00,MAYLOW CONSTRUCTION LTD,                         ,LEISURE & OPEN SPACES,Maintenance - Grounds,Cultural and Related Services
Swale Borough Council,29UM,11/01/2017,1147311,343.00,MAYLOW CONSTRUCTION LTD,                         ,LEISURE & OPEN SPACES,Maintenance - Grounds,Cultural and Related Services
Swale Borough Council,29UM,11/01/2017,1147312,379.00,MAYLOW CONSTRUCTION LTD,                         ,LEISURE & OPEN SPACES,Maintenance - Grounds,Cultural and Related Services
Swale Borough Council,29UM,11/01/2017,1147421,449.00,MAYLOW CONSTRUCTION LTD,                         ,LEISURE & OPEN SPACES,Maintenance - Grounds,Environmental and Regulatory Services
Swale Borough Council,29UM,11/01/2017,1147431,1596.00,MAYLOW CONSTRUCTION LTD,                         ,LEISURE & OPEN SPACES,Maintenance - Grounds,Cultural and Related Services
Swale Borough Council,29UM,11/01/2017,1147431,1879.00,MAYLOW CONSTRUCTION LTD,                         ,LEISURE & OPEN SPACES,Maintenance - Grounds,Cultural and Related Services
Swale Borough Council,29UM,11/01/2017,1147500,5509.80,MCL (KENT) LIMITED,                         ,HOUSING SERVICES,Housing Renovation Grants,Not used in this Structure
Swale Borough Council,29UM,11/01/2017,1147447,3650.00,MIKE TALBOT ASSOCIATES LTD,7613608                  ,MKS ENVIRONMENTAL SERVICES,Air Quality Grant,Environmental and Regulatory Services
Swale Borough Council,29UM,11/01/2017,1147447,77.20,MIKE TALBOT ASSOCIATES LTD,7613608                  ,MKS ENVIRONMENTAL SERVICES,Air Quality Grant,Environmental and Regulatory Services
Swale Borough Council,29UM,11/01/2017,1147387,10500.00,REDACTED PERSONAL INFORMATION,                         ,PLANNING SERVICES,Legal Fees,Internal Trading Cost Centres
Swale Borough Council,29UM,11/01/2017,1147387,2100.00,REDACTED PERSONAL INFORMATION,                         ,PLANNING SERVICES,Legal Fees,Internal Trading Cost Centres
Swale Borough Council,29UM,11/01/2017,1147475,1020.58,MPS MARKETING SERVICES LIMITED,6360656                  ,DEMOCRATIC & ELECTORAL SERVICES,Fees And Services,Central Services to the Public
Swale Borough Council,29UM,11/01/2017,1147476,357.50,MPS MARKETING SERVICES LIMITED,6360656                  ,DEMOCRATIC & ELECTORAL SERVICES,Stationery,Central Services to the Public
Swale Borough Council,29UM,11/01/2017,1147253,650.00,REDACTED PERSONAL INFORMATION,                         ,ENVIRONMENTAL RESPONSE TEAM,Legal Fees,Internal Trading Cost Centres
Swale Borough Council,29UM,11/01/2017,1147253,130.00,REDACTED PERSONAL INFORMATION,                         ,ENVIRONMENTAL RESPONSE TEAM,Legal Fees,Internal Trading Cost Centres
Swale Borough Council,29UM,11/01/2017,1147440,725.00,REDACTED PERSONAL INFORMATION,                         ,ENVIRONMENTAL RESPONSE TEAM,Legal Fees,Internal Trading Cost Centres
Swale Borough Council,29UM,11/01/2017,1147440,145.00,REDACTED PERSONAL INFORMATION,                         ,ENVIRONMENTAL RESPONSE TEAM,Legal Fees,Internal Trading Cost Centres
Swale Borough Council,29UM,11/01/2017,1147037,300.73,NPOWER,                         ,CONTRACT & PROCUREMENT,Electricity,Environmental and Regulatory Services
Swale Borough Council,29UM,11/01/2017,1147289,495.00,OBSIDIAN SECURITY LTD.,                         ,PROPERTY SERVICES,Buildings Maintenance,Corporate & Democratic Core
Swale Borough Council,29UM,11/01/2017,1147379,2362.50,P BINNIE CONSULTANCY LTD,07794784                 ,ECONOMIC DEVELOPMENT,Consultancy/Specialist Advice,Planning and Development Services
Swale Borough Council,29UM,11/01/2017,1147375,2722.50,PITNEY BOWES SOFTWARE EUROPE LIMITED,01977325                 ,LEISURE & OPEN SPACES,Computer Equipment & Materials,Internal Trading Cost Centres
Swale Borough Council,29UM,11/01/2017,1147503,2143.05,PRECEPT CS LIMITED,07311462                 ,HOUSING SERVICES,Housing Renovation Grants,Not used in this Structure
Swale Borough Council,29UM,11/01/2017,1147268,500.00,RADCLIFFE CHAMBERS,                         ,REVENUE SERVICES,Legal Fees,Central Services to the Public
Swale Borough Council,29UM,11/01/2017,1147268,100.00,RADCLIFFE CHAMBERS,                         ,REVENUE SERVICES,Legal Fees,Central Services to the Public
Swale Borough Council,29UM,11/01/2017,1147243,486.20,ROYAL MAIL GROUP LTD,4138203                  ,REVENUE SERVICES,Postage,Central Services to the Public
Swale Borough Council,29UM,11/01/2017,1147409,130.00,ROYAL MAIL GROUP LTD,4138203                  ,REVENUE SERVICES,Postage,Central Services to the Public
Swale Borough Council,29UM,11/01/2017,1147409,130.00,ROYAL MAIL GROUP LTD,4138203                  ,REVENUE SERVICES,Postage,Housing
Swale Borough Council,29UM,11/01/2017,1147341,375.00,RURAL PLANNING LTD,4426249                  ,PLANNING SERVICES,Fees And Services,Planning and Development Services
Swale Borough Council,29UM,11/01/2017,1147376,500.00,SITTINGBOURNE COMMUNITY RADIO,                         ,COMMUNICATIONS,Advertising & Promotion,Internal Trading Cost Centres
Swale Borough Council,29UM,11/01/2017,1147384,1390.95,SODEXO MOTIVATION SOLUTIONS UK LTD,02680629                 ,HUMAN RESOURCES,Fees And Services,Corporate & Democratic Core
Swale Borough Council,29UM,11/01/2017,1147457,3039.10,SOUTHERN COMMUNICATIONS LTD,1328040                  ,MKS ICT,Telephone,Corporate & Democratic Core
Swale Borough Council,29UM,11/01/2017,1147495,600.00,THE HISTORICAL RESEARCH GROUP OF SITTINGBOURNE,                         ,TOURISM & SPORTS DEVELOPMENT,Grants & Subscriptions,Cultural and Related Services
Swale Borough Council,29UM,11/01/2017,1147393,1277.50,THE OYSTER PARTNERSHIP,05020374                 ,PLANNING SERVICES,Agency/Contract Staff,Internal Trading Cost Centres
Swale Borough Council,29UM,11/01/2017,1147394,3307.50,THE OYSTER PARTNERSHIP,05020374                 ,PLANNING SERVICES,Agency/Contract Staff,Internal Trading Cost Centres
Swale Borough Council,29UM,11/01/2017,1147417,498.00,THREE TOWNS OFFICE EQUIPMENT LTD,                         ,REVENUE SERVICES,Furniture,Central Services to the Public
Swale Borough Council,29UM,11/01/2017,1147396,615.00,VENN GROUP LIMITED,                         ,MKS LEGAL SERVICES,Agency/Contract Staff,Internal Trading Cost Centres
Swale Borough Council,29UM,11/01/2017,1147397,292.50,VENN GROUP LIMITED,                         ,MKS LEGAL SERVICES,Agency/Contract Staff,Internal Trading Cost Centres
Swale Borough Council,29UM,11/01/2017,1147008,461.16,WHISTL UK LIMITED,04417047                 ,REVENUE SERVICES,Postage,Central Services to the Public
Swale Borough Council,29UM,11/01/2017,1147008,3.83,WHISTL UK LIMITED,04417047                 ,PLANNING SERVICES,Postage,Planning and Development Services
Swale Borough Council,29UM,11/01/2017,1147008,230.58,WHISTL UK LIMITED,04417047                 ,REVENUE SERVICES,Postage,Housing
Swale Borough Council,29UM,11/01/2017,1147008,96.89,WHISTL UK LIMITED,04417047                 ,LEISURE & OPEN SPACES,Postage,Internal Trading Cost Centres
Swale Borough Council,29UM,11/01/2017,1147008,2.13,WHISTL UK LIMITED,04417047                 ,ENVIRONMENTAL RESPONSE TEAM,Postage,Internal Trading Cost Centres
Swale Borough Council,29UM,11/01/2017,1147008,3.91,WHISTL UK LIMITED,04417047                 ,ECONOMIC DEVELOPMENT,Postage,Internal Trading Cost Centres
Swale Borough Council,29UM,11/01/2017,1147008,19.87,WHISTL UK LIMITED,04417047                 ,CAR PARKS,Postage,Internal Trading Cost Centres
Swale Borough Council,29UM,11/01/2017,1147008,47.55,WHISTL UK LIMITED,04417047                 ,PROPERTY SERVICES,Postage,Holding Codes
Swale Borough Council,29UM,11/01/2017,1147008,203.53,WHISTL UK LIMITED,04417047                 ,DEMOCRATIC & ELECTORAL SERVICES,Postage,Central Services to the Public
Swale Borough Council,29UM,11/01/2017,1147203,1153.20,WHISTL UK LIMITED,04417047                 ,REVENUE SERVICES,Postage,Central Services to the Public
Swale Borough Council,29UM,11/01/2017,1147203,5.89,WHISTL UK LIMITED,04417047                 ,PLANNING SERVICES,Postage,Planning and Development Services
Swale Borough Council,29UM,11/01/2017,1147203,576.60,WHISTL UK LIMITED,04417047                 ,REVENUE SERVICES,Postage,Housing
Swale Borough Council,29UM,11/01/2017,1147203,1.67,WHISTL UK LIMITED,04417047                 ,LEISURE & OPEN SPACES,Postage,Internal Trading Cost Centres
Swale Borough Council,29UM,11/01/2017,1147203,18.86,WHISTL UK LIMITED,04417047                 ,CAR PARKS,Postage,Internal Trading Cost Centres
Swale Borough Council,29UM,11/01/2017,1147203,3.24,WHISTL UK LIMITED,04417047                 ,ENVIRONMENTAL RESPONSE TEAM,Postage,Internal Trading Cost Centres
Swale Borough Council,29UM,11/01/2017,1147203,2.95,WHISTL UK LIMITED,04417047                 ,ECONOMIC DEVELOPMENT,Postage,Internal Trading Cost Centres
Swale Borough Council,29UM,11/01/2017,1147203,168.32,WHISTL UK LIMITED,04417047                 ,PROPERTY SERVICES,Postage,Holding Codes
Swale Borough Council,29UM,11/01/2017,1147203,95.59,WHISTL UK LIMITED,04417047                 ,DEMOCRATIC & ELECTORAL SERVICES,Postage,Central Services to the Public
Swale Borough Council,29UM,11/01/2017,1147275,546.56,WHISTL UK LIMITED,04417047                 ,REVENUE SERVICES,Postage,Central Services to the Public
Swale Borough Council,29UM,11/01/2017,1147275,3.25,WHISTL UK LIMITED,04417047                 ,PLANNING SERVICES,Postage,Planning and Development Services
Swale Borough Council,29UM,11/01/2017,1147275,273.27,WHISTL UK LIMITED,04417047                 ,REVENUE SERVICES,Postage,Housing
Swale Borough Council,29UM,11/01/2017,1147275,3.21,WHISTL UK LIMITED,04417047                 ,LEISURE & OPEN SPACES,Postage,Internal Trading Cost Centres
Swale Borough Council,29UM,11/01/2017,1147275,9.96,WHISTL UK LIMITED,04417047                 ,CAR PARKS,Postage,Internal Trading Cost Centres
Swale Borough Council,29UM,11/01/2017,1147275,48.13,WHISTL UK LIMITED,04417047                 ,PROPERTY SERVICES,Postage,Holding Codes
Swale Borough Council,29UM,11/01/2017,1147275,143.30,WHISTL UK LIMITED,04417047                 ,DEMOCRATIC & ELECTORAL SERVICES,Postage,Central Services to the Public
Swale Borough Council,29UM,11/01/2017,1147446,499.00,WILLOW TREE HOME SOLUTIONS LTD,                         ,HOUSING SERVICES,Staying Put small repairs (contractors),Housing
Swale Borough Council,29UM,11/01/2017,1147504,4685.80,WILLOW TREE HOME SOLUTIONS LTD,                         ,HOUSING SERVICES,Housing Renovation Grants,Not used in this Structure
Swale Borough Council,29UM,11/01/2017,1147505,2982.00,WILLOW TREE HOME SOLUTIONS LTD,                         ,HOUSING SERVICES,Housing Renovation Grants,Not used in this Structure
Swale Borough Council,29UM,13/01/2017,1147591,625.00,ACS SYSTEMS (UK) LTD,2988060                  ,DEMOCRATIC & ELECTORAL SERVICES,Performance Fund Expenditure,Ledger/Suspense Codes
Swale Borough Council,29UM,13/01/2017,4500554,-625.00,ACS SYSTEMS (UK) LTD,2988060                  ,DEMOCRATIC & ELECTORAL SERVICES,Performance Fund Expenditure,Ledger/Suspense Codes
Swale Borough Council,29UM,13/01/2017,1147648,500.00,DIRECTFIELD LTD,                         ,HOUSING SERVICES,Homelessness  Prevention Services,Housing
Swale Borough Council,29UM,13/01/2017,4500551,-500.00,DIRECTFIELD LTD,                         ,HOUSING SERVICES,Homelessness  Prevention Services,Housing
Swale Borough Council,29UM,18/01/2017,1147571,1200.00,5TH SHEPPEY SCOUT GROUP,                         ,COMMUNITY SAFETY,Grants & Subscriptions,Central Services to the Public
Swale Borough Council,29UM,18/01/2017,1147686,485.47,ACORN MAINTENANCE SERVICES,3546898                  ,HOUSING SERVICES,Housing Renovation Grants,Not used in this Structure
Swale Borough Council,29UM,18/01/2017,1147569,131.59,ALLSTAR BUSINESS SOLUTIONS LTD - (DT),1073098                  ,LEISURE & OPEN SPACES,Fuel For Contract Vehicles,Cultural and Related Services
Swale Borough Council,29UM,18/01/2017,1147569,66.95,ALLSTAR BUSINESS SOLUTIONS LTD - (DT),1073098                  ,LEISURE & OPEN SPACES,Fuel For Contract Vehicles,Cultural and Related Services
Swale Borough Council,29UM,18/01/2017,1147569,55.00,ALLSTAR BUSINESS SOLUTIONS LTD - (DT),1073098                  ,ENVIRONMENTAL RESPONSE TEAM,Fuel For Contract Vehicles,Environmental and Regulatory Services
Swale Borough Council,29UM,18/01/2017,1147653,3290.00,ALPHA MECHANICAL CONTRACTORS LTD,10247265                 ,COMMUNITY SAFETY,Capital Constuction - CIS Works,Not used in this Structure
Swale Borough Council,29UM,18/01/2017,1147653,3500.00,ALPHA MECHANICAL CONTRACTORS LTD,10247265                 ,COMMUNITY SAFETY,Capital Constuction - CIS Works,Not used in this Structure
Swale Borough Council,29UM,18/01/2017,1147654,2320.00,ALPHA MECHANICAL CONTRACTORS LTD,10247265                 ,COMMUNITY SAFETY,Capital Constuction - CIS Works,Not used in this Structure
Swale Borough Council,29UM,18/01/2017,1147654,3500.00,ALPHA MECHANICAL CONTRACTORS LTD,10247265                 ,COMMUNITY SAFETY,Capital Constuction - CIS Works,Not used in this Structure
Swale Borough Council,29UM,18/01/2017,1147288,12881.69,APCOA PARKING (UK) LTD,2572947                  ,CAR PARKS,Private Contractors,Highway and Transport Services
Swale Borough Council,29UM,18/01/2017,1147288,19322.54,APCOA PARKING (UK) LTD,2572947                  ,CAR PARKS,Private Contractors,Highway and Transport Services
Swale Borough Council,29UM,18/01/2017,1147422,79059.00,ARRIVA KENT AND SURREY LIMITED,                         ,PLANNING SERVICES,Payments in Year,Ledger/Suspense Codes
Swale Borough Council,29UM,18/01/2017,1146000,2000.00,ASHFORD BOROUGH COUNCIL,                         ,HOUSING SERVICES,Performance Fund Expenditure,Ledger/Suspense Codes
Swale Borough Council,29UM,18/01/2017,1147239,300.00,AYS LTD,                         ,CAR PARKS,Maintenance - Grounds,Highway and Transport Services
Swale Borough Council,29UM,18/01/2017,1147491,1701.10,BBM SUSTAINABLE DESIGN LTD,4597504                  ,COMMUNITY SAFETY,Capitalised Fees And Charges,Not used in this Structure
Swale Borough Council,29UM,18/01/2017,1147438,16938.00,BRITISH TELECOM PLC,1800000                  ,MKS ICT,Telephone,Corporate & Democratic Core
Swale Borough Council,29UM,18/01/2017,1147246,1820.00,BT DEVELOPMENTS,                         ,HOUSING SERVICES,B & B - Landlords Payments,Housing
Swale Borough Council,29UM,18/01/2017,1147524,33357.50,CITIZENS ADVICE BUREAU IN SWALE,5052691                  ,COMMUNITY SAFETY,Voluntary Organisations Grants,Central Services to the Public
Swale Borough Council,29UM,18/01/2017,1147679,2626.00,CITY OF LONDON,                         ,MKS ENVIRONMENTAL SERVICES,Sampling / Monitoring,Environmental and Regulatory Services
Swale Borough Council,29UM,18/01/2017,1147508,2969.86,COMENSURA LTD,04085767                 ,HUMAN RESOURCES,Agency/Contract Staff,Internal Trading Cost Centres
Swale Borough Council,29UM,18/01/2017,1147487,500.00,COMMUNITY SAFETY PROFESSIONALS LTD,                         ,COMMUNITY SAFETY,Fees And Services,Environmental and Regulatory Services
Swale Borough Council,29UM,18/01/2017,1147684,5500.00,DOLPHIN STAIRLIFTS (KENT),04181846                 ,HOUSING SERVICES,Housing Renovation Grants,Not used in this Structure
Swale Borough Council,29UM,18/01/2017,1147685,775.04,DOLPHIN STAIRLIFTS (KENT),04181846                 ,HOUSING SERVICES,Housing Renovation Grants,Not used in this Structure
Swale Borough Council,29UM,18/01/2017,1147564,900.00,FAVERSHAM ASSISTANCE CENTRE (FACE),                         ,COMMUNITY SAFETY,Grants & Subscriptions,Central Services to the Public
Swale Borough Council,29UM,18/01/2017,1147279,27775.00,GODDARD PLANNING CONSULTANCY,                         ,PLANNING SERVICES,Consultancy/Specialist Advice,Planning and Development Services
Swale Borough Council,29UM,18/01/2017,1147410,250.00,HERNHILL PARISH COUNCIL,                         ,COMMUNITY SAFETY,Grants & Subscriptions,Central Services to the Public
Swale Borough Council,29UM,18/01/2017,1147527,316.00,HUBBARD & HOUGHTON CONSTRUCTION LTD,                         ,HOUSING SERVICES,Staying Put small repairs (contractors),Housing
Swale Borough Council,29UM,18/01/2017,1147665,360.00,IDOX SOFTWARE LTD,06706798                 ,TOURISM & SPORTS DEVELOPMENT,Fees And Services,Cultural and Related Services
Swale Borough Council,29UM,18/01/2017,1147401,3300.00,J N CLEARANCE,                         ,CONTRACT & PROCUREMENT,"Clearance Of Waste,Fly Tipping",Environmental and Regulatory Services
Swale Borough Council,29UM,18/01/2017,1147509,4561.03,KENT COUNTY COUNCIL (KCS),                         ,PROPERTY SERVICES,Electricity,Corporate & Democratic Core
Swale Borough Council,29UM,18/01/2017,1147407,4818.41,KENT MESSENGER LTD,505554                   ,COMMUNICATIONS,Advertising & Promotion,Internal Trading Cost Centres
Swale Borough Council,29UM,18/01/2017,1147649,2967.75,KINGDOM SECURITY LIMITED,2795197                  ,ENVIRONMENTAL RESPONSE TEAM,Fees And Services,Planning and Development Services
Swale Borough Council,29UM,18/01/2017,1147432,1695.00,MAYLOW CONSTRUCTION LTD,                         ,LEISURE & OPEN SPACES,Maintenance - Grounds,Cultural and Related Services
Swale Borough Council,29UM,18/01/2017,1147432,3765.00,MAYLOW CONSTRUCTION LTD,                         ,LEISURE & OPEN SPACES,Maintenance - Grounds,Cultural and Related Services
Swale Borough Council,29UM,18/01/2017,1147433,469.00,MAYLOW CONSTRUCTION LTD,                         ,LEISURE & OPEN SPACES,Capitalised Fees And Charges,Not used in this Structure
Swale Borough Council,29UM,18/01/2017,1147433,3233.00,MAYLOW CONSTRUCTION LTD,                         ,LEISURE & OPEN SPACES,Maintenance - Grounds,Cultural and Related Services
Swale Borough Council,29UM,18/01/2017,1147433,1915.00,MAYLOW CONSTRUCTION LTD,                         ,LEISURE & OPEN SPACES,Maintenance - Grounds,Cultural and Related Services
Swale Borough Council,29UM,18/01/2017,1147434,1644.00,MAYLOW CONSTRUCTION LTD,                         ,LEISURE & OPEN SPACES,Maintenance - Grounds,Cultural and Related Services
Swale Borough Council,29UM,18/01/2017,1147434,4300.00,MAYLOW CONSTRUCTION LTD,                         ,LEISURE & OPEN SPACES,Maintenance - Grounds,Cultural and Related Services
Swale Borough Council,29UM,18/01/2017,1147316,610.00,METRIC GROUP LTD,2560839                  ,CAR PARKS,Fees - Licence,Highway and Transport Services
Swale Borough Council,29UM,18/01/2017,1147577,1611.89,MIDLANDS SIGNS LEICESTER LTD,1778323                  ,SERVICE DELIVERY,Private Contractors - CIS,Highway and Transport Services
Swale Borough Council,29UM,18/01/2017,1147577,1326.00,MIDLANDS SIGNS LEICESTER LTD,1778323                  ,SERVICE DELIVERY,Private Contractors - CIS,Highway and Transport Services
Swale Borough Council,29UM,18/01/2017,1147609,-455.50,REDACTED PERSONAL INFORMATION,                         ,LEISURE & OPEN SPACES,Ex-Gratia Payments,Environmental and Regulatory Services
Swale Borough Council,29UM,18/01/2017,1147610,455.50,REDACTED PERSONAL INFORMATION,                         ,LEISURE & OPEN SPACES,Ex-Gratia Payments,Environmental and Regulatory Services
Swale Borough Council,29UM,18/01/2017,1147563,3000.00,MURSTON ALL SAINTS TRUST,                         ,ECONOMY & COMMUNITIES,Communities Fund Expenditure,Ledger/Suspense Codes
Swale Borough Council,29UM,18/01/2017,1147237,3785.47,NATIONAL OFFENDER MANAGEMENT SERVICE,                         ,COMMUNITY SAFETY,Fees And Services,Environmental and Regulatory Services
Swale Borough Council,29UM,18/01/2017,1147237,3785.47,NATIONAL OFFENDER MANAGEMENT SERVICE,                         ,LEISURE & OPEN SPACES,Forestry/Woodland,Cultural and Related Services
Swale Borough Council,29UM,18/01/2017,1147473,203614.03,NHS ENGLAND,                         ,FINANCIAL SERVICES,Awaiting Allocation,Ledger/Suspense Codes
Swale Borough Council,29UM,18/01/2017,1147588,257.40,NPOWER,                         ,LEISURE & OPEN SPACES,Electricity,Cultural and Related Services
Swale Borough Council,29UM,18/01/2017,1147251,1107.28,O2 (UK) LTD,1743099                  ,MKS ICT,Telephone,Corporate & Democratic Core
Swale Borough Council,29UM,18/01/2017,1147565,625.00,OASIS ACADEMY ISLE OF SHEPPEY,                         ,CAR PARKS,Fees And Services,Highway and Transport Services
Swale Borough Council,29UM,18/01/2017,1147424,1010.50,QS CONSULT,                         ,COMMUNITY SAFETY,Capitalised Fees And Charges,Not used in this Structure
Swale Borough Council,29UM,18/01/2017,1147224,795.00,REARDON PROPERTIES,                         ,HOUSING SERVICES,B & B - Landlords Payments,Housing
Swale Borough Council,29UM,18/01/2017,1147455,490.00,REARDON PROPERTIES,                         ,HOUSING SERVICES,B & B - Landlords Payments,Housing
Swale Borough Council,29UM,18/01/2017,1147456,280.00,REARDON PROPERTIES,                         ,HOUSING SERVICES,B & B - Landlords Payments,Housing
Swale Borough Council,29UM,18/01/2017,1147466,360.00,REARDON PROPERTIES,                         ,HOUSING SERVICES,B & B - Landlords Payments,Housing
Swale Borough Council,29UM,18/01/2017,1147469,490.00,REARDON PROPERTIES,                         ,HOUSING SERVICES,B & B - Landlords Payments,Housing
Swale Borough Council,29UM,18/01/2017,1147619,875.00,REARDON PROPERTIES,                         ,HOUSING SERVICES,B & B - Landlords Payments,Housing
Swale Borough Council,29UM,18/01/2017,1147507,1081.38,ROYAL MAIL GROUP LTD,4138203                  ,PROPERTY SERVICES,Postage,Holding Codes
Swale Borough Council,29UM,18/01/2017,1147428,905.60,RSP RAIL TRAVEL ACCOUNT - (DT),                         ,FINANCIAL SERVICES,Travel Warrants (Staff Travel),Internal Trading Cost Centres
Swale Borough Council,29UM,18/01/2017,1147687,2311.20,S A BRIGGS,                         ,HOUSING SERVICES,Housing Renovation Grants,Not used in this Structure
Swale Borough Council,29UM,18/01/2017,1147683,710.00,SOUTH EAST BUILDING CO LTD,1786838                  ,HOUSING SERVICES,Housing Renovation Grants,Not used in this Structure
Swale Borough Council,29UM,18/01/2017,1147411,1200.00,SWALE COMMUNITY & VOLUNTARY SERVICES,277523                   ,COMMUNITY SAFETY,Grants & Subscriptions,Central Services to the Public
Swale Borough Council,29UM,18/01/2017,1147403,2080.00,SYNERGY CONSTRUCTION & PROPERTY CONSULTANTS LLP,                         ,COMMUNITY SAFETY,Capitalised Fees And Charges,Not used in this Structure
Swale Borough Council,29UM,18/01/2017,1147443,750.00,THE ABBEY SCHOOL,07697086                 ,CAR PARKS,Fees And Services,Highway and Transport Services
Swale Borough Council,29UM,18/01/2017,1147413,514.96,VANITORIALS LIMITED,3952938                  ,PROPERTY SERVICES,Cleaning Materials,Internal Trading Cost Centres
Swale Borough Council,29UM,18/01/2017,1147134,960.00,VP PROPERTY DEVELOPMENT LTD,                         ,HOUSING SERVICES,B & B - Landlords Payments,Housing
Swale Borough Council,29UM,19/01/2017,1147764,8000.00,K JONES ELECTRICAL,3668823362               ,COMMUNITY SAFETY,Capital Constuction - CIS Works,Not used in this Structure
Swale Borough Council,29UM,19/01/2017,4500555,-8000.00,K JONES ELECTRICAL,3668823362               ,COMMUNITY SAFETY,Capital Constuction - CIS Works,Not used in this Structure
Swale Borough Council,29UM,25/01/2017,1147844,5870.70,ACORN MAINTENANCE SERVICES,3546898                  ,HOUSING SERVICES,Housing Renovation Grants,Not used in this Structure
Swale Borough Council,29UM,25/01/2017,1147845,5129.10,ACORN MAINTENANCE SERVICES,3546898                  ,HOUSING SERVICES,Housing Renovation Grants,Not used in this Structure
Swale Borough Council,29UM,25/01/2017,1147675,5067.50,AECOM INFRASTRUCTURE & ENV UK LTD,880328                   ,PLANNING SERVICES,Fees And Services,Planning and Development Services
Swale Borough Council,29UM,25/01/2017,1147755,50.00,ALLSTAR BUSINESS SOLUTIONS LTD - (DT),1073098                  ,SERVICE DELIVERY,Petrol/Derv & Oil,Cultural and Related Services
Swale Borough Council,29UM,25/01/2017,1147755,155.64,ALLSTAR BUSINESS SOLUTIONS LTD - (DT),1073098                  ,ENVIRONMENTAL RESPONSE TEAM,Fuel For Contract Vehicles,Internal Trading Cost Centres
Swale Borough Council,29UM,25/01/2017,1147755,54.76,ALLSTAR BUSINESS SOLUTIONS LTD - (DT),1073098                  ,LEISURE & OPEN SPACES,Fuel For Contract Vehicles,Cultural and Related Services
Swale Borough Council,29UM,25/01/2017,1147843,1471.50,ASCENDIT LIFTS LTD,3493530                  ,HOUSING SERVICES,Housing Renovation Grants,Not used in this Structure
Swale Borough Council,29UM,25/01/2017,1147671,750.00,BLUE TOWN REMEMBERED,                         ,TOURISM & SPORTS DEVELOPMENT,Grants & Subscriptions,Cultural and Related Services
Swale Borough Council,29UM,25/01/2017,1147408,945.00,CARRINGTON WEST LIMITED,07344853                 ,PLANNING SERVICES,Agency/Contract Staff,Internal Trading Cost Centres
Swale Borough Council,29UM,25/01/2017,1147599,1050.00,CARRINGTON WEST LIMITED,07344853                 ,PLANNING SERVICES,Agency/Contract Staff,Internal Trading Cost Centres
Swale Borough Council,29UM,25/01/2017,1147680,480.00,CASEMENT SIGNS & GRAPHICS,                         ,SERVICE DELIVERY,Private Contractors - CIS,Highway and Transport Services
Swale Borough Council,29UM,25/01/2017,1147420,3333.33,CHALKWELL COACH HIRE LTD,2520842                  ,PLANNING SERVICES,Payments in Year,Ledger/Suspense Codes
Swale Borough Council,29UM,25/01/2017,1147678,297.00,CHART. INSTITUTE OF HOUSING,244067/A                 ,HOUSING SERVICES,Conference,Housing
Swale Borough Council,29UM,25/01/2017,1147786,2228.33,CHILDREN AND FAMILIES LTD,                         ,COMMUNITY SAFETY,Fees And Services,Planning and Development Services
Swale Borough Council,29UM,25/01/2017,1147825,312.80,CITY OF LONDON,                         ,MKS ENVIRONMENTAL SERVICES,Sampling / Monitoring,Environmental and Regulatory Services
Swale Borough Council,29UM,25/01/2017,1147689,3187.70,COMENSURA LTD,04085767                 ,HUMAN RESOURCES,Agency/Contract Staff,Internal Trading Cost Centres
Swale Borough Council,29UM,25/01/2017,1147285,359.00,CONTRACT SECURITY SERVICES,2461362                  ,EXCHEQUER,Cash Security,Internal Trading Cost Centres
Swale Borough Council,29UM,25/01/2017,1147285,3444.48,CONTRACT SECURITY SERVICES,2461362                  ,CAR PARKS,Cash Security,Highway and Transport Services
Swale Borough Council,29UM,25/01/2017,1147285,180.96,CONTRACT SECURITY SERVICES,2461362                  ,CAR PARKS,Cash Security,Highway and Transport Services
Swale Borough Council,29UM,25/01/2017,1147877,2701.40,CO-OP BANK PLC - (DT),                         ,REVENUE SERVICES,Bank Charges Pay Point,Central Services to the Public
Swale Borough Council,29UM,25/01/2017,1147877,36.90,CO-OP BANK PLC - (DT),                         ,REVENUE SERVICES,Bank Charges Pay Point,Central Services to the Public
Swale Borough Council,29UM,25/01/2017,1147877,55.35,CO-OP BANK PLC - (DT),                         ,REVENUE SERVICES,Bank Charges Pay Point,Housing
Swale Borough Council,29UM,25/01/2017,1147877,4.95,CO-OP BANK PLC - (DT),                         ,EXCHEQUER,Bank Charges Pay Point,Internal Trading Cost Centres
Swale Borough Council,29UM,25/01/2017,1147877,32.85,CO-OP BANK PLC - (DT),                         ,EXCHEQUER,Bank Charges Pay Point,Internal Trading Cost Centres
Swale Borough Council,29UM,25/01/2017,1147663,4860.83,CORE ASSETS CHILDREN'S SERVICES LTD,                         ,COMMUNITY SAFETY,Fees And Services,Planning and Development Services
Swale Borough Council,29UM,25/01/2017,1147791,350.00,CREDITSAFE BUSINESS SOLUTIONS LTD,03836192                 ,FINANCIAL SERVICES,Fees And Services,Internal Trading Cost Centres
Swale Borough Council,29UM,25/01/2017,1147538,-2700.00,DAVID HUSKISSON ASSOCIATES LIMITED,2797095                  ,PLANNING SERVICES,Fees And Services,Planning and Development Services
Swale Borough Council,29UM,25/01/2017,1147540,4241.25,DAVID HUSKISSON ASSOCIATES LIMITED,2797095                  ,PLANNING SERVICES,Fees And Services,Planning and Development Services
Swale Borough Council,29UM,25/01/2017,1147733,17341.62,DAVID HUSKISSON ASSOCIATES LIMITED,2797095                  ,PLANNING SERVICES,Consultancy/Specialist Advice,Planning and Development Services
Swale Borough Council,29UM,25/01/2017,1147637,5040.00,DCB (KENT) LIMITED,03532339                 ,LEISURE & OPEN SPACES,Non-Planned Building Maintenance,Environmental and Regulatory Services
Swale Borough Council,29UM,25/01/2017,1147637,380.71,DCB (KENT) LIMITED,03532339                 ,PROPERTY SERVICES,Non-Planned Building Maintenance,Trading Undertaking
Swale Borough Council,29UM,25/01/2017,1147637,43.00,DCB (KENT) LIMITED,03532339                 ,PROPERTY SERVICES,Non-Planned Building Maintenance,Trading Undertaking
Swale Borough Council,29UM,25/01/2017,1147637,616.29,DCB (KENT) LIMITED,03532339                 ,CONTRACT & PROCUREMENT,Non-Planned Building Maintenance,Environmental and Regulatory Services
Swale Borough Council,29UM,25/01/2017,1147637,240.37,DCB (KENT) LIMITED,03532339                 ,LEISURE & OPEN SPACES,Non-Planned Building Maintenance,Cultural and Related Services
Swale Borough Council,29UM,25/01/2017,1147888,500.00,DIRECTFIELD LTD,                         ,HOUSING SERVICES,Homelessness  Prevention Services,Housing
Swale Borough Council,29UM,25/01/2017,1147736,300.00,DODDINGTON PARISH COUNCIL,                         ,COMMUNITY SAFETY,Grants & Subscriptions,Central Services to the Public
Swale Borough Council,29UM,25/01/2017,1147731,2550.00,EMAP PUBLISHING LTD,537204                   ,CHIEF EXECUTIVE,Prizes/Awards,Corporate & Democratic Core
Swale Borough Council,29UM,25/01/2017,1147078,75.33,FIRST UTILITY LTD,05070887                 ,HOUSING SERVICES,Electricity,Housing
Swale Borough Council,29UM,25/01/2017,1147078,476.36,FIRST UTILITY LTD,05070887                 ,HOUSING SERVICES,Gas,Housing
Swale Borough Council,29UM,25/01/2017,1147078,-125.43,FIRST UTILITY LTD,05070887                 ,HOUSING SERVICES,Gas,Housing
Swale Borough Council,29UM,25/01/2017,1147615,182.00,GALTEC SOLUTIONS LTD,5209602                  ,COMMISSIONING & CUSTOMER CONTACT,Equipment Purchase,Internal Trading Cost Centres
Swale Borough Council,29UM,25/01/2017,1147615,168.00,GALTEC SOLUTIONS LTD,5209602                  ,MKS ICT,Computer Equipment & Materials,Internal Trading Cost Centres
Swale Borough Council,29UM,25/01/2017,1147615,176.20,GALTEC SOLUTIONS LTD,5209602                  ,MKS ICT,Computer Equipment & Materials,Internal Trading Cost Centres
Swale Borough Council,29UM,25/01/2017,1147615,130.17,GALTEC SOLUTIONS LTD,5209602                  ,MKS ICT,Computer Equipment & Materials,Internal Trading Cost Centres
Swale Borough Council,29UM,25/01/2017,1147842,3339.97,HUBBARD & HOUGHTON CONSTRUCTION LTD,                         ,HOUSING SERVICES,Housing Renovation Grants,Not used in this Structure
Swale Borough Council,29UM,25/01/2017,1147603,250.00,INTEGRA ASSOCIATES LIMITED,03054901                 ,FINANCIAL SERVICES,Performance Fund Expenditure,Ledger/Suspense Codes
Swale Borough Council,29UM,25/01/2017,1147659,1160.00,KENT COUNTY COUNCIL,                         ,PLANNING SERVICES,Consultancy/Specialist Advice,Planning and Development Services
Swale Borough Council,29UM,25/01/2017,1147688,11250.00,KENT COUNTY COUNCIL,                         ,LEISURE & OPEN SPACES,Grants & Subscriptions,Cultural and Related Services
Swale Borough Council,29UM,25/01/2017,1147600,2342.58,KENT COUNTY COUNCIL (KCS),                         ,PROPERTY SERVICES,Gas,Corporate & Democratic Core
Swale Borough Council,29UM,25/01/2017,1147676,350.00,KENT INVICTA CHAMBER OF COMMERCE,2794615                  ,ECONOMIC DEVELOPMENT,Fees And Services,Planning and Development Services
Swale Borough Council,29UM,25/01/2017,1147568,16451.63,KGB CLEANING & SUPPORT SERVICES LTD,                         ,CONTRACT & PROCUREMENT,Private Contractors,Environmental and Regulatory Services
Swale Borough Council,29UM,25/01/2017,1147744,200.00,LEMAR LIMITED,04350292                 ,LEISURE & OPEN SPACES,Maintenance - Grounds,Cultural and Related Services
Swale Borough Council,29UM,25/01/2017,1147744,75.00,LEMAR LIMITED,04350292                 ,LEISURE & OPEN SPACES,Maintenance - Grounds,Cultural and Related Services
Swale Borough Council,29UM,25/01/2017,1147746,300.00,LEMAR LIMITED,04350292                 ,SERVICE DELIVERY,Private Contractors - CIS,Highway and Transport Services
Swale Borough Council,29UM,25/01/2017,1147746,180.00,LEMAR LIMITED,04350292                 ,SERVICE DELIVERY,Private Contractors - CIS,Highway and Transport Services
Swale Borough Council,29UM,25/01/2017,1147747,300.00,LEMAR LIMITED,04350292                 ,SERVICE DELIVERY,Private Contractors - CIS,Highway and Transport Services
Swale Borough Council,29UM,25/01/2017,1147747,120.00,LEMAR LIMITED,04350292                 ,SERVICE DELIVERY,Private Contractors - CIS,Highway and Transport Services
Swale Borough Council,29UM,25/01/2017,1147748,300.00,LEMAR LIMITED,04350292                 ,SERVICE DELIVERY,Private Contractors - CIS,Highway and Transport Services
Swale Borough Council,29UM,25/01/2017,1147748,330.00,LEMAR LIMITED,04350292                 ,SERVICE DELIVERY,Private Contractors - CIS,Highway and Transport Services
Swale Borough Council,29UM,25/01/2017,1147751,1000.00,LEMAR LIMITED,04350292                 ,CAR PARKS,Maintenance - Grounds,Highway and Transport Services
Swale Borough Council,29UM,25/01/2017,1147751,560.50,LEMAR LIMITED,04350292                 ,CAR PARKS,Maintenance - Grounds,Highway and Transport Services
Swale Borough Council,29UM,25/01/2017,1147752,400.00,LEMAR LIMITED,04350292                 ,SERVICE DELIVERY,Private Contractors - CIS,Highway and Transport Services
Swale Borough Council,29UM,25/01/2017,1147752,250.00,LEMAR LIMITED,04350292                 ,SERVICE DELIVERY,Private Contractors - CIS,Highway and Transport Services
Swale Borough Council,29UM,25/01/2017,1147342,21650.00,LESSHOMELESS LIMITED,08458851                 ,HOUSING SERVICES,B & B - Landlords Payments,Housing
Swale Borough Council,29UM,25/01/2017,1147781,1095.20,LEXISNEXIS UK,2746621                  ,MKS LEGAL SERVICES,"Books, Journals & e - resources",Internal Trading Cost Centres
Swale Borough Council,29UM,25/01/2017,1147477,280.00,LILAC ESTATES,                         ,HOUSING SERVICES,B & B - Landlords Payments,Housing
Swale Borough Council,29UM,25/01/2017,1147478,280.00,LILAC ESTATES,                         ,HOUSING SERVICES,B & B - Landlords Payments,Housing
Swale Borough Council,29UM,25/01/2017,1147479,280.00,LILAC ESTATES,                         ,HOUSING SERVICES,B & B - Landlords Payments,Housing
Swale Borough Council,29UM,25/01/2017,1147635,1428.09,LLOYDS BANK - (DT),                         ,FINANCIAL SERVICES,Bank Charges,Corporate & Democratic Core
Swale Borough Council,29UM,25/01/2017,1147386,553.27,REDACTED PERSONAL INFORMATION,                         ,PLANNING SERVICES,Fees And Services,Planning and Development Services
Swale Borough Council,29UM,25/01/2017,1147597,15882.75,MAIDSTONE BOROUGH COUNCIL,                         ,CONTRACT & PROCUREMENT,Equipment Purchase,Environmental and Regulatory Services
Swale Borough Council,29UM,25/01/2017,1147598,11395.90,MAIDSTONE BOROUGH COUNCIL,                         ,CONTRACT & PROCUREMENT,Equipment Purchase,Environmental and Regulatory Services
Swale Borough Council,29UM,25/01/2017,1147604,55697.00,MAIDSTONE BOROUGH COUNCIL,                         ,PLANNING SERVICES,MKS Charges for Planning,Internal Trading Cost Centres
Swale Borough Council,29UM,25/01/2017,1147605,13050.00,MAIDSTONE BOROUGH COUNCIL,                         ,PLANNING SERVICES,MKS Charges for Land Charges,Central Services to the Public
Swale Borough Council,29UM,25/01/2017,1147606,14427.00,MAIDSTONE BOROUGH COUNCIL,                         ,DEMOCRATIC & ELECTORAL SERVICES,Grants & Subscriptions,Corporate & Democratic Core
Swale Borough Council,29UM,25/01/2017,1147629,1063.59,MAIDSTONE BOROUGH COUNCIL,                         ,ENVIRONMENTAL RESPONSE TEAM,Fees And Services,Environmental and Regulatory Services
Swale Borough Council,29UM,25/01/2017,1147884,929163.00,MAIDSTONE BOROUGH COUNCIL - DT,                         ,FINANCIAL SERVICES,Tariff to Gvt,Taxation and Non-Specific Grant Income
Swale Borough Council,29UM,25/01/2017,1147583,874.00,MATCHTECH,4426336                  ,PLANNING SERVICES,Agency/Contract Staff,Internal Trading Cost Centres
Swale Borough Council,29UM,25/01/2017,1147763,1702.00,MATCHTECH,4426336                  ,PLANNING SERVICES,Agency/Contract Staff,Internal Trading Cost Centres
Swale Borough Council,29UM,25/01/2017,1147607,546.00,MAYLOW CONSTRUCTION LTD,                         ,LEISURE & OPEN SPACES,Maintenance - Grounds,Environmental and Regulatory Services
Swale Borough Council,29UM,25/01/2017,1147820,688.35,MEDAU MOVEMENT,                         ,TOURISM & SPORTS DEVELOPMENT,Grants & Subscriptions,Cultural and Related Services
Swale Borough Council,29UM,25/01/2017,1147261,1182.40,MEDWAY ACCOMMODATION LIMITED,                         ,HOUSING SERVICES,B & B - Landlords Payments,Housing
Swale Borough Council,29UM,25/01/2017,1147261,246.33,MEDWAY ACCOMMODATION LIMITED,                         ,HOUSING SERVICES,B & B - Landlords Payments,Housing
Swale Borough Council,29UM,25/01/2017,1147262,1762.40,MEDWAY ACCOMMODATION LIMITED,                         ,HOUSING SERVICES,B & B - Landlords Payments,Housing
Swale Borough Council,29UM,25/01/2017,1147262,367.17,MEDWAY ACCOMMODATION LIMITED,                         ,HOUSING SERVICES,B & B - Landlords Payments,Housing
Swale Borough Council,29UM,25/01/2017,1147314,1510.40,MEDWAY ACCOMMODATION LIMITED,                         ,HOUSING SERVICES,B & B - Landlords Payments,Housing
Swale Borough Council,29UM,25/01/2017,1147314,314.67,MEDWAY ACCOMMODATION LIMITED,                         ,HOUSING SERVICES,B & B - Landlords Payments,Housing
Swale Borough Council,29UM,25/01/2017,1147773,500.00,MEDWAY PUBLIC SERVICES LTD,10041989                 ,COMMUNITY SAFETY,CCTV Monitoring Service,Environmental and Regulatory Services
Swale Borough Council,29UM,25/01/2017,1147779,1943.03,MEDWAY PUBLIC SERVICES LTD,10041989                 ,COMMUNITY SAFETY,CCTV Monitoring Service,Environmental and Regulatory Services
Swale Borough Council,29UM,25/01/2017,1147762,494.50,METROSIGNS 2000 (BEDFORD) LTD,4597343                  ,LEISURE & OPEN SPACES,Maintenance - Grounds,Cultural and Related Services
Swale Borough Council,29UM,25/01/2017,1147717,5500.00,REDACTED PERSONAL INFORMATION,                         ,PLANNING SERVICES,Legal Fees,Planning and Development Services
Swale Borough Council,29UM,25/01/2017,1147717,1100.00,REDACTED PERSONAL INFORMATION,                         ,PLANNING SERVICES,Legal Fees,Planning and Development Services
Swale Borough Council,29UM,25/01/2017,1147526,4644.80,REDACTED PERSONAL INFORMATION,                         ,MKS ENVIRONMENTAL SERVICES,Legal Fees,Internal Trading Cost Centres
Swale Borough Council,29UM,25/01/2017,1147526,928.96,REDACTED PERSONAL INFORMATION,                         ,MKS ENVIRONMENTAL SERVICES,Legal Fees,Internal Trading Cost Centres
Swale Borough Council,29UM,25/01/2017,1147594,276.21,NPOWER,                         ,CAR PARKS,Electricity,Highway and Transport Services
Swale Borough Council,29UM,25/01/2017,1147313,17966.00,PARAMOUNT INDEPENDENT PROPERTY SERVICES,                         ,HOUSING SERVICES,B & B - Landlords Payments,Housing
Swale Borough Council,29UM,25/01/2017,1147661,1034.60,PATROL,                         ,CAR PARKS,Parking Adjudication Fees,Highway and Transport Services
Swale Borough Council,29UM,25/01/2017,1147661,1034.60,PATROL,                         ,CAR PARKS,Parking Adjudication Fees,Highway and Transport Services
Swale Borough Council,29UM,25/01/2017,1147395,2275.00,PETER BRETT ASSOCIATES LLP,OC334398                 ,PLANNING SERVICES,Fees And Services,Planning and Development Services
Swale Borough Council,29UM,25/01/2017,1147728,433.33,PREMIER INN (ATOS) DT,                         ,HOUSING SERVICES,B & B - Landlords Payments,Housing
Swale Borough Council,29UM,25/01/2017,1147892,5.00,RBS PURCHASING CARD (DT) - AMAZON,,DEMOCRATIC & ELECTORAL SERVICES,Stationery,Internal Trading Cost Centres
Swale Borough Council,29UM,25/01/2017,1147893,62.29,RBS PURCHASING CARD (DT) - RJ's,,TOURISM & SPORTS DEVELOPMENT,Equipment Purchase,Internal Trading Cost Centres
Swale Borough Council,29UM,25/01/2017,1147893,6.60,RBS PURCHASING CARD (DT) - HOMEBASE,,LEISURE & OPEN SPACES,Swale in Bloom,Cultural and Related Services
Swale Borough Council,29UM,25/01/2017,1147894,9.95,RBS PURCHASING CARD (DT) - ARGOS,,PROPERTY SERVICES,Equipment Purchase,Corporate & Democratic Core
Swale Borough Council,29UM,25/01/2017,1147894,35.78,RBS PURCHASING CARD (DT) - THIRSTY CUPS,,PROPERTY SERVICES,Equipment Purchase,Corporate & Democratic Core
Swale Borough Council,29UM,25/01/2017,1147894,32.99,RBS PURCHASING CARD (DT) - TRADE FRAMES,,PROPERTY SERVICES,Equipment Purchase,Corporate & Democratic Core
Swale Borough Council,29UM,25/01/2017,1147894,39.59,RBS PURCHASING CARD (DT) - TRADE FRAMES,,PROPERTY SERVICES,Equipment Purchase,Corporate & Democratic Core
Swale Borough Council,29UM,25/01/2017,1147894,10.00,RBS PURCHASING CARD (DT) - HSE BOOKS,,HEALTH & SAFETY,Equipment Purchase,Corporate & Democratic Core
Swale Borough Council,29UM,25/01/2017,1147895,25.00,RBS PURCHASING CARD (DT) - FLOWERS BY BEATRICE,,DEMOCRATIC & ELECTORAL SERVICES,Hospitality Allowance - Mayor,Corporate & Democratic Core
Swale Borough Council,29UM,25/01/2017,1147897,2.50,RBS PURCHASING CARD (DT) - WILKO ,                         ,CHIEF EXECUTIVE,Catering Provisions,Corporate & Democratic Core
Swale Borough Council,29UM,25/01/2017,1147897,26.60,RBS PURCHASING CARD (DT) - ALDI,                         ,CHIEF EXECUTIVE,Catering Provisions,Corporate & Democratic Core
Swale Borough Council,29UM,25/01/2017,1147897,0.79,RBS PURCHASING CARD (DT) - ALDI,                         ,CHIEF EXECUTIVE,Catering Provisions,Corporate & Democratic Core
Swale Borough Council,29UM,25/01/2017,1147897,15.74,RBS PURCHASING CARD (DT) - TRIARCHY PRESS BOOKSHOP,                         ,DIRECTOR OF CORPORATE SERVICES,"Books, Journals & e - resources",Internal Trading Cost Centres
Swale Borough Council,29UM,25/01/2017,1147897,2.50,RBS PURCHASING CARD (DT) - POUNDLAND,                         ,DIRECTOR OF CORPORATE SERVICES,Stationery,Internal Trading Cost Centres
Swale Borough Council,29UM,25/01/2017,1147897,35.00,RBS PURCHASING CARD (DT) - ICO.GOV.UK,,DIRECTOR OF CORPORATE SERVICES,Members - Outside Bodies Allowance,Corporate & Democratic Core
Swale Borough Council,29UM,25/01/2017,1147897,35.00,RBS PURCHASING CARD (DT) - ICO.GOV.UK,,DIRECTOR OF CORPORATE SERVICES,Members - Outside Bodies Allowance,Corporate & Democratic Core
Swale Borough Council,29UM,25/01/2017,1147897,35.00,RBS PURCHASING CARD (DT) - ICO.GOV.UK,,DIRECTOR OF CORPORATE SERVICES,Members - Outside Bodies Allowance,Corporate & Democratic Core
Swale Borough Council,29UM,25/01/2017,1147897,35.00,RBS PURCHASING CARD (DT) - ICO.GOV.UK,,DIRECTOR OF CORPORATE SERVICES,Members - Outside Bodies Allowance,Corporate & Democratic Core
Swale Borough Council,29UM,25/01/2017,1147897,35.00,RBS PURCHASING CARD (DT) - ICO.GOV.UK,,DIRECTOR OF CORPORATE SERVICES,Members - Outside Bodies Allowance,Corporate & Democratic Core
Swale Borough Council,29UM,25/01/2017,1147897,35.00,RBS PURCHASING CARD (DT) - ICO.GOV.UK,,DIRECTOR OF CORPORATE SERVICES,Members - Outside Bodies Allowance,Corporate & Democratic Core
Swale Borough Council,29UM,25/01/2017,1147897,35.00,RBS PURCHASING CARD (DT) - ICO.GOV.UK,,DIRECTOR OF CORPORATE SERVICES,Members - Outside Bodies Allowance,Corporate & Democratic Core
Swale Borough Council,29UM,25/01/2017,1147897,35.00,RBS PURCHASING CARD (DT) - ICO.GOV.UK,,DIRECTOR OF CORPORATE SERVICES,Members - Outside Bodies Allowance,Corporate & Democratic Core
Swale Borough Council,29UM,25/01/2017,1147897,35.00,RBS PURCHASING CARD (DT) - ICO.GOV.UK,,DIRECTOR OF CORPORATE SERVICES,Members - Outside Bodies Allowance,Corporate & Democratic Core
Swale Borough Council,29UM,25/01/2017,1147897,35.00,RBS PURCHASING CARD (DT) - ICO.GOV.UK,,DIRECTOR OF CORPORATE SERVICES,Members - Outside Bodies Allowance,Corporate & Democratic Core
Swale Borough Council,29UM,25/01/2017,1147897,35.00,RBS PURCHASING CARD (DT) - ICO.GOV.UK,,DIRECTOR OF CORPORATE SERVICES,Members - Outside Bodies Allowance,Corporate & Democratic Core
Swale Borough Council,29UM,25/01/2017,1147897,35.00,RBS PURCHASING CARD (DT) - ICO.GOV.UK,,DIRECTOR OF CORPORATE SERVICES,Members - Outside Bodies Allowance,Corporate & Democratic Core
Swale Borough Council,29UM,25/01/2017,1147897,35.00,RBS PURCHASING CARD (DT) - ICO.GOV.UK,,DIRECTOR OF CORPORATE SERVICES,Members - Outside Bodies Allowance,Corporate & Democratic Core
Swale Borough Council,29UM,25/01/2017,1147897,35.00,RBS PURCHASING CARD (DT) - ICO.GOV.UK,,DIRECTOR OF CORPORATE SERVICES,Members - Outside Bodies Allowance,Corporate & Democratic Core
Swale Borough Council,29UM,25/01/2017,1147897,35.00,RBS PURCHASING CARD (DT) - ICO.GOV.UK,,DIRECTOR OF CORPORATE SERVICES,Members - Outside Bodies Allowance,Corporate & Democratic Core
Swale Borough Council,29UM,25/01/2017,1147897,35.00,RBS PURCHASING CARD (DT) - ICO.GOV.UK,,DIRECTOR OF CORPORATE SERVICES,Members - Outside Bodies Allowance,Corporate & Democratic Core
Swale Borough Council,29UM,25/01/2017,1147897,35.00,RBS PURCHASING CARD (DT) - ICO.GOV.UK,,DIRECTOR OF CORPORATE SERVICES,Members - Outside Bodies Allowance,Corporate & Democratic Core
Swale Borough Council,29UM,25/01/2017,1147898,31.74,RBS PURCHASING CARD (DT) - DHL,,PLANNING SERVICES,Postage,Internal Trading Cost Centres
Swale Borough Council,29UM,25/01/2017,1147899,76.09,RBS PURCHASING CARD (DT) - JNE SECURITY LTD,,HOUSING SERVICES,Fees And Services,Housing
Swale Borough Council,29UM,25/01/2017,1147900,99.48,RBS PURCHASING CARD (DT) - ASDA,,CHIEF EXECUTIVE,Catering Provisions,Corporate & Democratic Core
Swale Borough Council,29UM,25/01/2017,1147900,-0.91,RBS PURCHASING CARD (DT) - ASDA,,CHIEF EXECUTIVE,Catering Provisions,Corporate & Democratic Core
Swale Borough Council,29UM,25/01/2017,1147901,71.16,RBS PURCHASING CARD (DT) - ASDA,,HOUSING SERVICES,Fuel For Contract Vehicles,Housing
Swale Borough Council,29UM,25/01/2017,1147901,10.14,RBS PURCHASING CARD (DT) - CITY ELECTRICAL,,HOUSING SERVICES,Staying Put - Materials,Housing
Swale Borough Council,29UM,25/01/2017,1147901,2.84,RBS PURCHASING CARD (DT) - HOMEBASE,,HOUSING SERVICES,Staying Put - Materials,Housing
Swale Borough Council,29UM,25/01/2017,1147901,7.29,RBS PURCHASING CARD (DT) - OYEZ FORMS,,HOUSING SERVICES,Fees And Services,Housing
Swale Borough Council,29UM,25/01/2017,1147901,64.68,RBS PURCHASING CARD (DT) - MORRISONS,,HOUSING SERVICES,Fuel For Contract Vehicles,Housing
Swale Borough Council,29UM,25/01/2017,1147901,71.25,RBS PURCHASING CARD (DT) - FORCE FIVE (KENT) LTD,,HOUSING SERVICES,Catering Provisions,Housing
Swale Borough Council,29UM,25/01/2017,1147902,4.30,RBS PURCHASING CARD (DT) - PAYBYPHONE PARKING TWBC,,MKS LEGAL SERVICES,Car Park Fees,Internal Trading Cost Centres
Swale Borough Council,29UM,25/01/2017,1147903,119.18,RBS PURCHASING CARD (DT) - MERCURE HOTELS,,HOUSING SERVICES,Conference,Housing
Swale Borough Council,29UM,25/01/2017,1147904,10.00,RBS PURCHASING CARD (DT) - SITTINGBOURNE SHOES,,PROPERTY SERVICES,Equipment Purchase,Corporate & Democratic Core
Swale Borough Council,29UM,25/01/2017,1147904,4.95,RBS PURCHASING CARD (DT) - OASIS,,CONTRACT & PROCUREMENT,Non-Planned Building Maintenance,Environmental and Regulatory Services
Swale Borough Council,29UM,25/01/2017,1147904,125.00,RBS PURCHASING CARD (DT) - CARPET TRADE SALES,,COMMUNITY SAFETY,Non-Planned Building Maintenance,Cultural and Related Services
Swale Borough Council,29UM,25/01/2017,1147904,31.43,RBS PURCHASING CARD (DT) - M.J. PLASTICS LTD,,CONTRACT & PROCUREMENT,Non-Planned Building Maintenance,Environmental and Regulatory Services
Swale Borough Council,29UM,25/01/2017,1147905,31.30,RBS PURCHASING CARD (DT) - WORDERY,,MKS LEGAL SERVICES,"Books, Journals & e - resources",Internal Trading Cost Centres
Swale Borough Council,29UM,25/01/2017,1147905,44.99,RBS PURCHASING CARD (DT) - TAYLOR AND FRANCIS,,MKS LEGAL SERVICES,"Books, Journals & e - resources",Internal Trading Cost Centres
Swale Borough Council,29UM,25/01/2017,1147225,280.00,REARDON PROPERTIES,                         ,HOUSING SERVICES,B & B - Landlords Payments,Housing
Swale Borough Council,29UM,25/01/2017,1147226,735.00,REARDON PROPERTIES,                         ,HOUSING SERVICES,B & B - Landlords Payments,Housing
Swale Borough Council,29UM,25/01/2017,1147454,735.00,REARDON PROPERTIES,                         ,HOUSING SERVICES,B & B - Landlords Payments,Housing
Swale Borough Council,29UM,25/01/2017,1147467,735.00,REARDON PROPERTIES,                         ,HOUSING SERVICES,B & B - Landlords Payments,Housing
Swale Borough Council,29UM,25/01/2017,1147617,735.00,REARDON PROPERTIES,                         ,HOUSING SERVICES,B & B - Landlords Payments,Housing
Swale Borough Council,29UM,25/01/2017,1147618,490.00,REARDON PROPERTIES,                         ,HOUSING SERVICES,B & B - Landlords Payments,Housing
Swale Borough Council,29UM,25/01/2017,1147625,490.00,REARDON PROPERTIES,                         ,HOUSING SERVICES,B & B - Landlords Payments,Housing
Swale Borough Council,29UM,25/01/2017,1147626,1190.00,REARDON PROPERTIES,                         ,HOUSING SERVICES,B & B - Landlords Payments,Housing
Swale Borough Council,29UM,25/01/2017,1147628,735.00,REARDON PROPERTIES,                         ,HOUSING SERVICES,B & B - Landlords Payments,Housing
Swale Borough Council,29UM,25/01/2017,1147660,900.00,REARDON PROPERTIES,                         ,HOUSING SERVICES,RDS - Landlord claim on Bond Scheme,Housing
Swale Borough Council,29UM,25/01/2017,1147339,427.50,ROSE REMOVALS,7572105                  ,HOUSING SERVICES,Storage Expenses,Housing
Swale Borough Council,29UM,25/01/2017,1147647,500.00,SHEPPEY ESTATES,                         ,HOUSING SERVICES,RDS - Landlord claim on Bond Scheme,Housing
Swale Borough Council,29UM,25/01/2017,1147819,600.00,SITT. & KEMSLEY LIGHT RAILWAY LTD,                         ,TOURISM & SPORTS DEVELOPMENT,Grants & Subscriptions,Cultural and Related Services
Swale Borough Council,29UM,25/01/2017,1147716,1257.00,SWS WOODLAND & CONSERVATION MGNT SERV,                         ,LEISURE & OPEN SPACES,Fees And Services,Cultural and Related Services
Swale Borough Council,29UM,25/01/2017,1147672,400.00,THE ALEXANDER CENTRE TRUST LIMITED,07281634                 ,COMMUNITY SAFETY,Grants & Subscriptions,Central Services to the Public
Swale Borough Council,29UM,25/01/2017,1147620,2100.00,THE JOHN WOODWARD PARTNERSHIP,                         ,PLANNING SERVICES,Fees And Services,Planning and Development Services
Swale Borough Council,29UM,25/01/2017,1147664,1041.25,THE OYSTER PARTNERSHIP,05020374                 ,PLANNING SERVICES,Agency/Contract Staff,Internal Trading Cost Centres
Swale Borough Council,29UM,25/01/2017,1147767,787.50,THE OYSTER PARTNERSHIP,05020374                 ,PLANNING SERVICES,Agency/Contract Staff,Internal Trading Cost Centres
Swale Borough Council,29UM,25/01/2017,1147284,1190.00,TRAFALGAR TAVERN LTD,07999329                 ,HOUSING SERVICES,B & B - Landlords Payments,Housing
Swale Borough Council,29UM,25/01/2017,1147330,1260.00,TRAFALGAR TAVERN LTD,07999329                 ,HOUSING SERVICES,B & B - Landlords Payments,Housing
Swale Borough Council,29UM,25/01/2017,1147470,1505.00,TRAFALGAR TAVERN LTD,07999329                 ,HOUSING SERVICES,B & B - Landlords Payments,Housing
Swale Borough Council,29UM,25/01/2017,1147573,585.00,VENN GROUP LIMITED,                         ,MKS LEGAL SERVICES,Agency/Contract Staff,Internal Trading Cost Centres
Swale Borough Council,29UM,25/01/2017,1147574,1230.00,VENN GROUP LIMITED,                         ,MKS LEGAL SERVICES,Agency/Contract Staff,Internal Trading Cost Centres
Swale Borough Council,29UM,25/01/2017,1147758,1230.00,VENN GROUP LIMITED,                         ,MKS LEGAL SERVICES,Agency/Contract Staff,Internal Trading Cost Centres
Swale Borough Council,29UM,25/01/2017,1147759,507.00,VENN GROUP LIMITED,                         ,MKS LEGAL SERVICES,Agency/Contract Staff,Internal Trading Cost Centres
Swale Borough Council,29UM,25/01/2017,1147650,916.50,VIVID RESOURCING LIMITED,06459262                 ,PLANNING SERVICES,Agency/Contract Staff,Internal Trading Cost Centres
Swale Borough Council,29UM,25/01/2017,1147651,1583.75,VIVID RESOURCING LIMITED,06459262                 ,PLANNING SERVICES,Agency/Contract Staff,Internal Trading Cost Centres
Swale Borough Council,29UM,25/01/2017,1147729,1268.75,VIVID RESOURCING LIMITED,06459262                 ,PLANNING SERVICES,Agency/Contract Staff,Internal Trading Cost Centres
Swale Borough Council,29UM,25/01/2017,1147734,1472.25,VIVID RESOURCING LIMITED,06459262                 ,PLANNING SERVICES,Agency/Contract Staff,Internal Trading Cost Centres
Swale Borough Council,29UM,25/01/2017,1147737,450.00,WEALD WOODSCAPES LTD,8028446                  ,LEISURE & OPEN SPACES,Maintenance - Grounds,Cultural and Related Services
Swale Borough Council,29UM,25/01/2017,1147621,137.24,WHISTL UK LIMITED,04417047                 ,REVENUE SERVICES,Postage,Central Services to the Public
Swale Borough Council,29UM,25/01/2017,1147621,3.00,WHISTL UK LIMITED,04417047                 ,PLANNING SERVICES,Postage,Planning and Development Services
Swale Borough Council,29UM,25/01/2017,1147621,68.61,WHISTL UK LIMITED,04417047                 ,REVENUE SERVICES,Postage,Housing
Swale Borough Council,29UM,25/01/2017,1147621,4.26,WHISTL UK LIMITED,04417047                 ,LEISURE & OPEN SPACES,Postage,Internal Trading Cost Centres
Swale Borough Council,29UM,25/01/2017,1147621,9.07,WHISTL UK LIMITED,04417047                 ,CAR PARKS,Postage,Internal Trading Cost Centres
Swale Borough Council,29UM,25/01/2017,1147621,15.04,WHISTL UK LIMITED,04417047                 ,PROPERTY SERVICES,Postage,Holding Codes
Swale Borough Council,29UM,25/01/2017,1147621,73.05,WHISTL UK LIMITED,04417047                 ,DEMOCRATIC & ELECTORAL SERVICES,Postage,Central Services to the Public
Swale Borough Council,29UM,25/01/2017,1147333,6417.00,WHITE RESIDENTIAL,                         ,HOUSING SERVICES,B & B - Landlords Payments,Housing
Swale Borough Council,29UM,25/01/2017,1147882,3315.27,WORLDPAY (DT),07316500                 ,REVENUE SERVICES,Commission Paid,Central Services to the Public
Swale Borough Council,29UM,25/01/2017,1147882,530.99,WORLDPAY (DT),07316500                 ,REVENUE SERVICES,Commission Paid,Central Services to the Public
Swale Borough Council,29UM,25/01/2017,1147882,20.94,WORLDPAY (DT),07316500                 ,REVENUE SERVICES,Commission Paid,Housing
Swale Borough Council,29UM,25/01/2017,1147882,18.70,WORLDPAY (DT),07316500                 ,EXCHEQUER,Commission Paid,Internal Trading Cost Centres
Swale Borough Council,29UM,25/01/2017,1147882,588.98,WORLDPAY (DT),07316500                 ,EXCHEQUER,Commission Paid,Internal Trading Cost Centres
Swale Borough Council,29UM,25/01/2017,1147882,356.50,WORLDPAY (DT),07316500                 ,EXCHEQUER,Commission Paid,Internal Trading Cost Centres
Swale Borough Council,29UM,25/01/2017,1147882,9.99,WORLDPAY (DT),07316500                 ,MKS ICT,Fees And Services,Internal Trading Cost Centres
Swale Borough Council,29UM,26/01/2017,1147645,590.46,BRITISH GAS TRADING LTD,                         ,PROPERTY SERVICES,Electricity,Trading Undertaking
Swale Borough Council,29UM,26/01/2017,1147646,-590.46,BRITISH GAS TRADING LTD,                         ,PROPERTY SERVICES,Electricity,Trading Undertaking
